fUSD/lending_fUSD_20250618
["ID","MTS","AMOUNT","RATE_DAILY","PERIOD"]
[366423227,1750247451597,-151.0,0.00016438,2]
[366423228,1750247451607,-151.0,0.00016438,2]
[366423229,1750247451617,-151.0,0.00016438,2]
[366423230,1750247451627,-151.0,0.00016438,2]
[366423231,1750247451637,-151.0,0.00016438,2]
[366423232,1750247451648,-231.454996,0.00016438,2]
[366423233,1750247451658,-151.0,0.00016438,2]
[366423234,1750247451668,-151.0,0.00016438,2]
[366423235,1750247451678,-263.114958,0.00016438,2]
[366423236,1750247451689,-151.0,0.00016438,2]
[366423237,1750247451699,-151.0,0.00016438,2]
[366423238,1750247451709,-151.0,0.00016438,2]
[366423239,1750247451719,-151.0,0.00016438,2]
[366423240,1750247451729,-151.0,0.00016438,2]
[366423241,1750247451739,-151.0,0.00016438,2]
[366423242,1750247451749,-264.43107,0.00016438,2]
[366423243,1750247451760,-2568.735844,0.00016438,2]
[366423244,1750247451771,-151.0,0.00016438,2]
[366423245,1750247451781,-157.11969,0.00016438,2]
[366423246,1750247451791,-490.0,0.00016438,2]
[366423247,1750247451803,-151.0,0.00016438,2]
[366423248,1750247451814,-151.0,0.00016438,2]
[366423249,1750247451824,-110.330988,0.00016438,2]
[366423250,1750247451907,-379.669012,0.00016438,2]
[366423251,1750247451918,-206.016068,0.00016438,2]
[366423252,1750247451928,-151.0,0.00016438,2]
[366423253,1750247451938,-151.0,0.00016438,2]
[366423254,1750247451948,-490.0,0.00016438,2]
[366423255,1750247451958,-151.0,0.00016438,2]
[366423256,1750247451968,-237.094754,0.00016438,2]
[366423257,1750247451979,-490.0,0.00016438,2]
[366423258,1750247451989,-490.0,0.00016438,2]
[366423259,1750247451999,-414.31132393,0.00016438,2]
[366423260,1750247452012,-121.92867607,0.00016438,2]
[366423261,1750247452023,-490.0,0.00016438,2]
[366423262,1750247452033,-151.0,0.00016438,2]
[366423263,1750247452043,-151.0,0.00016438,2]
[366423264,1750247452058,-495.71197826,0.00016438,2]
[366423265,1750247452069,-151.0,0.00016438,2]
[366423266,1750247452078,-203.50255,0.00016438,2]
[366423267,1750247452088,-490.0,0.00016438,2]
[366423268,1750247452097,-490.0,0.00016438,2]
[366423269,1750247452107,-490.0,0.00016438,2]
[366423270,1750247452116,-158.111379,0.00016438,2]
[366423271,1750247452131,-794.66,0.00016438,2]
[366423272,1750247452140,-322.7277601,0.00016438,2]
[366423273,1750247452150,-490.0,0.00016438,2]
[366423274,1750247452160,-151.0,0.00016438,2]
[366423275,1750247452170,-151.0,0.00016438,2]
[366423276,1750247452180,-490.0,0.00016438,2]
[366423277,1750247452189,-490.0,0.00016438,2]
[366423278,1750247452199,-500.30238234,0.00016438,2]
[366423279,1750247452209,-567.62,0.00016438,2]
[366423280,1750247452218,-490.0,0.00016438,2]
[366423281,1750247452228,-494.40597644,0.00016438,2]
[366423282,1750247452238,-445.71274861,0.00016438,2]
[366423283,1750247452247,-490.0,0.00016438,2]
[366423284,1750247452258,-490.0,0.00016438,2]
[366423285,1750247452267,-579.9,0.00016438,2]
[366423286,1750247452277,-490.0,0.00016438,2]
[366423287,1750247452287,-490.0,0.00016438,2]
[366423288,1750247452297,-494.43,0.00016438,2]
[366423289,1750247452307,-113.19384384,0.00016438,2]
[366423290,1750247528768,589.0,0.00024649,120]
[366423291,1750247963653,400.0,0.00024657,120]
[366423294,1750248294296,1470.0,0.00024658,120]
[366423295,1750248304921,313.84,0.00024658,120]
[366423297,1750248431800,203.0,0.00012179,2]
[366423304,1750248632298,-203.0,0.00013545,3]
[366423305,1750248632309,-164.01,0.00013699,2]
[366423306,1750248632318,-500.0,0.00014179,2]
[366423307,1750248632327,-500.0,0.00014179,2]
[366423308,1750248632337,-326.72321397,0.00014179,2]
[366423309,1750248632346,-203.0,0.00014912,5]
[366423310,1750248632356,-177.1,0.00015044,2]
[366423311,1750248632365,-666.0,0.00015046,2]
[366423312,1750248632374,-952.13,0.00015097,2]
[366423313,1750248632384,-693.25,0.00015118,2]
[366423314,1750248632393,-200.0,0.00015319,7]
[366423315,1750248632403,-150.0,0.00015398,2]
[366423316,1750248632412,-1200.0,0.00015407,2]
[366423317,1750248632421,-1000.0,0.00015408,2]
[366423318,1750248632431,-168.0,0.00015422,2]
[366423319,1750248632440,-300.0,0.00015427,2]
[366423320,1750248632449,-300.0,0.00015428,2]
[366423321,1750248632459,-7371.15,0.00015429,2]
[366423322,1750248632469,-432.66,0.00015477,2]
[366423323,1750248632479,-150.0,0.0001555,2]
[366423324,1750248632489,-151.0,0.00015563,2]
[366423325,1750248632499,-1957.856,0.00015563,2]
[366423326,1750248632508,-207.4,0.00015563,2]
[366423327,1750248632517,-150.0,0.0001558,2]
[366423328,1750248632527,-1427.29774604,0.00015618,2]
[366423329,1750248632537,-150.0,0.00015645,2]
[366423330,1750248632547,-168.0,0.000157,2]
[366423331,1750248632556,-150.0,0.00015713,2]
[366423332,1750248632565,-150.0,0.00015753,2]
[366423333,1750248632575,-168.0,0.00015795,2]
[366423334,1750248632584,-210.0,0.00015825,2]
[366423335,1750248632593,-168.0,0.00015839,2]
[366423336,1750248632603,-168.0,0.0001586,2]
[366423337,1750248632612,-150.0,0.00015884,2]
[366423338,1750248632621,-168.0,0.00015937,2]
[366423339,1750248632630,-150.0,0.00016007,2]
[366423340,1750248632640,-210.0,0.00016017,2]
[366423341,1750248632649,-325.0,0.00016017,2]
[366423343,1750248632659,-150.0,0.00016022,2]
[366423345,1750248632669,-7114.0,0.00016055,2]
[366423347,1750248632678,-156.0,0.00016055,2]
[366423349,1750248632687,-4092.0,0.00016055,2]
[366423351,1750248632697,-150.0,0.00016068,2]
[366423352,1750248632707,-150.0,0.00016087,2]
[366423354,1750248632717,-150.0,0.00016109,2]
[366423356,1750248632727,-210.0,0.00016146,2]
[366423357,1750248632738,-150.0,0.00016248,2]
[366423358,1750248632748,-7000.0,0.0001627,2]
[366423359,1750248632758,-203.0,0.00016278,6]
[366423360,1750248632769,-2000.0,0.00016305,2]
[366423361,1750248632780,-500.0,0.00016305,2]
[366423362,1750248632790,-200.0,0.00016305,2]
[366423363,1750248632801,-200.0,0.00016307,2]
[366423364,1750248632812,-150.0,0.0001631,2]
[366423365,1750248632822,-150.0,0.00016314,2]
[366423366,1750248632832,-6570.0,0.00016326,2]
[366423367,1750248632842,-152.51326047,0.00016329,2]
[366423368,1750248632851,-2150.66658199,0.0001633,2]
[366423369,1750248632862,-518.60112684,0.00016334,2]
[366423371,1750248632871,-157.954,0.00016338,2]
[366423373,1750248632881,-2298.212,0.00016338,2]
[366423375,1750248632890,-169.47600768,0.00016338,2]
[366423377,1750248632900,-170.70507019,0.00016338,2]
[366423379,1750248632909,-194.04507123,0.00016338,2]
[366423381,1750248632918,-763.14947287,0.00016338,2]
[366423384,1750248632929,-176.3023413,0.00016338,2]
[366423387,1750248632939,-150.0,0.00016376,2]
[366423390,1750248632949,-2150.66658193,0.00016391,2]
[366423393,1750248632959,-71298.31556402,0.000164,2]
[366423396,1750248632969,-763.14947281,0.000164,2]
[366423399,1750248632979,-150.0,0.00016415,2]
[366423402,1750248632989,-151.0,0.00016426,2]
[366423405,1750248632999,-151.0,0.00016426,2]
[366423408,1750248633009,-151.0,0.00016426,2]
[366423411,1750248633019,-151.0,0.00016426,2]
[366423413,1750248633029,-8147.7702025,0.00016429,2]
[366423415,1750248633039,-2712.04315461,0.00016429,2]
[366423421,1750248633066,-891.49715652,0.000159,2]
[366423424,1750248633076,-3269.56708633,0.00016429,2]
[366423443,1750248633237,-339.38850602,0.00016429,2]
[366423446,1750248633253,-329.76386651,0.00016429,2]
[366423448,1750248633265,-4438.59865489,0.00016429,2]
[366423449,1750248633277,-675.00168085,0.00016429,2]
[366423450,1750248633297,-4958.5,0.00016429,2]
[366423452,1750248638148,-891.49715651,0.00016038,2]
[366423453,1750248638158,-855.0,0.00016055,2]
[366423454,1750248638168,-891.49715651,0.00016176,2]
[366423455,1750248638178,-891.49715651,0.00016314,2]
[366423456,1750248638188,-6840.55235885,0.00016429,2]
[366423457,1750248638307,-3300.67963416,0.00016429,2]
[366423458,1750248638361,-1155.788706,0.00016429,2]
[366423459,1750248638415,-3439.0,0.00016429,2]
[366423479,1750248640833,-566.70941878,0.00016429,2]
[366423496,1750248643422,-649.5,0.0001589,2]
[366423497,1750248643433,-240.06594259,0.00016429,2]
[366423498,1750248643446,-6288.78853201,0.00016429,2]
[366423499,1750248643477,-3813.32307979,0.00016429,2]
[366423500,1750248643490,-491.95238989,0.00016429,2]
[366423501,1750248643512,-451.5420953,0.00016429,2]
[366423641,1750248646805,-1306.116,0.00016055,2]
[366423644,1750248646818,-2636.77148003,0.00016429,2]
[366423646,1750248646830,-844.34532881,0.00016429,2]
[366423649,1750248646854,-11535.70296448,0.00016429,2]
[366423651,1750248646864,-3780.0015811,0.00016429,2]
[366423653,1750248646873,-1389.5304631,0.00016429,2]
[366423655,1750248646883,-29765.2661287,0.00016429,2]
[366423657,1750248646892,-2884.2691755,0.0001643,2]
[366423659,1750248646902,-501.55,0.00016434,2]
[366423661,1750248646912,-494.6,0.00016434,2]
[366423663,1750248646922,-151.0,0.00016434,2]
[366423665,1750248646931,-151.0,0.00016434,2]
[366423667,1750248646940,-151.0,0.00016434,2]
[366423669,1750248646950,-150.0,0.00016434,2]
[366423672,1750248646968,-150.0,0.00016434,2]
[366423674,1750248646980,-39.07968712,0.00016434,2]
[366423677,1750248646994,-460.92031288,0.00016434,2]
[366423679,1750248647004,-150.0,0.00016434,2]
[366423681,1750248647014,-14.025531,0.00016434,2]
[366423683,1750248647027,-485.974469,0.00016434,2]
[366423685,1750248647037,-500.0,0.00016434,2]
[366423687,1750248647047,-150.0,0.00016434,2]
[366423689,1750248647057,-150.0,0.00016434,2]
[366423690,1750248647068,-201.32445781,0.00016434,2]
[366423691,1750248647078,-500.0,0.00016434,2]
[366423692,1750248647089,-150.0,0.00016434,2]
[366423693,1750248647099,-150.0,0.00016434,2]
[366423694,1750248647109,-71.65879518,0.00016435,2]
[366423695,1750248647122,-79.34120482,0.00016435,2]
[366423696,1750248647132,-151.0,0.00016435,2]
[366423697,1750248647142,-150.0,0.00016435,2]
[366423698,1750248647153,-500.0,0.00016437,2]
[366423699,1750248647164,-445.71822149,0.00016437,2]
[366423700,1750248647174,-531.08660596,0.00016437,2]
[366423701,1750248647184,-185.72045292,0.00016437,2]
[366423702,1750248647197,-314.27954708,0.00016437,2]
[366423703,1750248647207,-500.0,0.00016437,2]
[366423704,1750248647217,-500.0,0.00016437,2]
[366423705,1750248647228,-500.0,0.00016437,2]
[366423706,1750248647237,-187.82,0.00016437,2]
[366423707,1750248647248,-357.37070962,0.00016438,2]
[366423708,1750248647312,-5330.25377258,0.00016438,2]
[366423709,1750248647322,-55836.16583521,0.00016438,2]
[366423710,1750248671601,202.0,0.00012179,2]
[366423711,1750248705935,150.0,0.00013,2]
[366423712,1750248706708,160.0,0.00016434,120]
[366423713,1750248747767,558.57517681,0.000211,90]
[366423714,1750248823744,157.47,0.00024658,120]
[366423716,1750248861367,400.0,0.00024657,120]
[366423721,1750249310871,512.33071326,0.0002465,120]
[366423722,1750249313053,483.0,0.0002465,120]
[366423723,1750249314466,1360.0,0.0002465,120]
[366423724,1750249370750,732.00943522,0.0002465,120]
[366423725,1750249415455,2078.4014693,0.00024657,120]
[366423726,1750249425183,3545.0,0.00024658,120]
[366423727,1750249468606,1000.0,0.00024657,120]
[366423737,1750249758128,400.0,0.00024657,120]
[366423738,1750249764034,-10000.0,0.00013368,2]
[366423739,1750249765066,-2747.57373381,0.00013368,2]
[366423740,1750249765089,-163.35,0.00013699,2]
[366423741,1750249765110,-193.655028,0.00014151,2]
[366423742,1750249765132,-203.0,0.00014644,2]
[366423743,1750249765155,-346.62,0.00014982,2]
[366423744,1750249765178,-168.0,0.00015007,2]
[366423745,1750249765204,-168.0,0.00015119,2]
[366423746,1750249765227,-168.0,0.00015124,2]
[366423747,1750249765250,-4795.37,0.00015135,2]
[366423748,1750249765274,-290.0,0.00015298,2]
[366423749,1750249765298,-228.01127593,0.000153,2]
[366423750,1750249765318,-152.0,0.00015303,3]
[366423751,1750249765340,-290.0,0.00015305,2]
[366423752,1750249765363,-86.41996226,0.00015329,2]
[366423753,1750249765622,-203.58003774,0.00015329,2]
[366423754,1750249765644,-194.0,0.00015346,2]
[366423755,1750249765665,-290.0,0.00015361,2]
[366423756,1750249765687,-1200.0,0.00015385,2]
[366423757,1750249765710,-290.0,0.00015386,2]
[366423758,1750249765733,-168.0,0.00015417,2]
[366423759,1750249765967,-166.65,0.0001545,2]
[366423760,1750249765993,-1000.0,0.00015464,2]
[366423761,1750249766014,-200.0,0.00015523,7]
[366423762,1750249766034,-241.92146008,0.00015559,2]
[366423763,1750249766055,-151.0,0.00015563,2]
[366423764,1750249766075,-1957.856,0.00015563,2]
[366423765,1750249766096,-207.4,0.00015563,2]
[366423766,1750249766120,-152.0,0.00015577,4]
[366423767,1750249766141,-194.0,0.00015599,2]
[366423768,1750249766163,-2030.296672,0.00015618,2]
[366423769,1750249766184,-300.58307873,0.00015673,2]
[366423770,1750249766207,-152.0,0.00015851,5]
[366423771,1750249766235,-779.83182232,0.000159,2]
[366423772,1750249766258,-120.88092913,0.00016019,3]
[366423774,1750249766577,-82.11907087,0.00016019,3]
[366423775,1750249766599,-502.92,0.00016038,2]
[366423776,1750249766622,-302.11,0.00016038,2]
[366423777,1750249766645,-503.81,0.00016038,2]
[366423778,1750249766667,-495.22,0.00016038,2]
[366423779,1750249766690,-490.88,0.00016038,2]
[366423780,1750249766713,-303.55,0.00016038,2]
[366423781,1750249766737,-501.92,0.00016038,2]
[366423782,1750249766777,-301.71,0.00016038,2]
[366423783,1750249766805,-507.48,0.00016038,2]
[366423784,1750249766827,-504.58,0.00016038,2]
[366423785,1750249766856,-779.83182226,0.00016038,2]
[366423786,1750249766878,-152.0,0.00016125,6]
[366423787,1750249766901,-194.0,0.00016135,2]
[366423788,1750249766930,-779.83182226,0.00016176,2]
[366423789,1750249766953,-194.0,0.00016249,2]
[366423790,1750249766975,-3404.03728461,0.0001627,2]
[366423791,1750249767147,-3595.96271539,0.0001627,2]
[366423792,1750249767172,-168.0,0.00016273,2]
[366423793,1750249767199,-200.0,0.00016278,2]
[366423794,1750249767223,-297.47651365,0.00016306,2]
[366423795,1750249767249,-2000.0,0.00016307,2]
[366423796,1750249767276,-500.0,0.00016307,2]
[366423797,1750249767302,-200.0,0.00016307,2]
[366423798,1750249767327,-200.0,0.0001631,2]
[366423799,1750249767356,-779.83182226,0.00016314,2]
[366423800,1750249767381,-250.03012993,0.00016318,2]
[366423801,1750249767406,-250.03012993,0.00016336,2]
[366423802,1750249767429,-1063.1300341,0.00016337,2]
[366423803,1750249767452,-495.53865474,0.00016338,2]
[366423804,1750249767578,-7059.93544526,0.00016338,2]
[366423805,1750249767601,-1831.09720561,0.00016338,2]
[366423806,1750249767624,-162.47352663,0.00016338,2]
[366423807,1750249767646,-666.55024429,0.00016338,2]
[366423808,1750249767673,-233.71284579,0.00016338,2]
[366423809,1750249767695,-46.23073242,0.00016338,2]
[366423810,1750249767723,-911.5134836,0.00016338,2]
[366423811,1750249767746,-2418.7367,0.00016338,2]
[366423812,1750249767769,-200.0,0.00016341,2]
[366423813,1750249767793,-157.954,0.00016351,2]
[366423814,1750249767818,-1939.047,0.00016351,2]
[366423815,1750249767843,-200.0,0.00016353,2]
[366423816,1750249767869,-297.47651365,0.00016355,2]
[366423817,1750249767892,-200.0,0.00016355,2]
[366423818,1750249767916,-297.47651365,0.00016365,2]
[366423819,1750249767941,-200.0,0.0001637,2]
[366423820,1750249767970,-200.0,0.00016377,2]
[366423821,1750249767995,-1063.13003401,0.00016392,2]
[366423822,1750249768020,-250.03012993,0.00016398,2]
[366423823,1750249768044,-152.0,0.00016399,7]
[366423824,1750249768068,-200.0,0.00016399,2]
[366423825,1750249768091,-1312.63562516,0.000164,2]
[366423826,1750249768556,-9018.84899633,0.000164,2]
[366423827,1750249768580,-981.15100367,0.000164,2]
[366423828,1750249768615,-10000.0,0.000164,2]
[366423829,1750249768943,-10000.0,0.000164,2]
[366423830,1750249771289,-7986.25441016,0.000164,2]
[366423831,1750249771313,-1831.09720561,0.00016411,2]
[366423832,1750249771335,-182.64838423,0.00016426,2]
[366423833,1750249771376,-685.8383777,0.00016426,2]
[366423834,1750249771398,-165.09,0.00016428,2]
[366423835,1750249771421,-9149.0716223,0.00016429,2]
[366423836,1750249771457,-10000.0,0.00016429,2]
[366423837,1750249771540,-4041.2019142,0.00016429,2]
[366423838,1750249771562,-1082.5904054,0.00016429,2]
[366423839,1750249771585,-4876.2076804,0.00016429,2]
[366423840,1750249771670,-6645.2915306,0.00016429,2]
[366423841,1750249771693,-3354.7084694,0.0001643,2]
[366423842,1750249772275,-10000.0,0.0001643,2]
[366423843,1750249772457,-10000.0,0.0001643,2]
[366423844,1750249772971,-213.21461862,0.00016338,2]
[366423845,1750249772993,-9786.78538138,0.0001643,2]
[366423846,1750249773370,-10000.0,0.0001643,2]
[366423847,1750249774198,-2637.21519122,0.0001643,2]
[366423848,1750249774223,-2945.0188772,0.0001643,2]
[366423849,1750249774245,-150.0,0.00016435,2]
[366423850,1750249774269,-236.30738567,0.00016435,2]
[366423851,1750249774296,-201.98796862,0.00016435,2]
[366423852,1750249774320,-150.0,0.00016435,2]
[366423853,1750249774343,-150.92398456,0.00016435,2]
[366423854,1750249774366,-500.0,0.00016435,2]
[366423855,1750249774388,-256.21253458,0.00016435,2]
[366423856,1750249774410,-150.0,0.00016435,2]
[366423857,1750249774438,-150.0,0.00016435,2]
[366423858,1750249774462,-150.0,0.00016435,2]
[366423859,1750249774484,-290.28026856,0.00016435,2]
[366423860,1750249774505,-150.0,0.00016435,2]
[366423861,1750249774527,-150.0,0.00016435,2]
[366423862,1750249774550,-150.0,0.00016435,2]
[366423863,1750249774574,-500.0,0.00016435,2]
[366423864,1750249774597,-153.2539826,0.00016435,2]
[366423865,1750249774619,-500.0,0.00016435,2]
[366423866,1750249774640,-150.0,0.00016435,2]
[366423867,1750249774661,-150.0,0.00016435,2]
[366423868,1750249774683,-128.79980699,0.00016435,2]
[366423869,1750249774866,-21.20019301,0.00016435,2]
[366423870,1750249774888,-500.0,0.00016435,2]
[366423871,1750249774909,-166.63313128,0.00016435,2]
[366423872,1750249774930,-165.63971983,0.00016435,2]
[366423873,1750249774958,-159.90616622,0.00016435,2]
[366423874,1750249774980,-500.0,0.00016435,2]
[366423875,1750249775001,-2843.8122411,0.00016437,2]
[366423876,1750249775024,-1098.27808479,0.00016437,5]
[366423877,1750249775047,-179.99,0.00016437,2]
[366423878,1750249775069,-371.76062417,0.00016437,2]
[366423879,1750249775091,-500.0,0.00016437,2]
[366423880,1750249775114,-500.0,0.00016437,2]
[366423881,1750249775138,-562.00275504,0.00016437,2]
[366423882,1750249775161,-500.0,0.00016437,2]
[366423883,1750249775183,-497.18,0.00016438,2]
[366423884,1750249775208,-301.62,0.00016438,2]
[366423885,1750249775232,-1131.97708456,0.00016438,2]
[366423886,1750249775589,-10000.0,0.00016438,2]
[366423887,1750249775901,-10000.0,0.00016438,2]
[366423888,1750249776623,-10000.0,0.00016438,2]
[366423889,1750249776685,-10000.0,0.00016438,2]
[366423890,1750249776914,-10000.0,0.00016438,2]
[366423891,1750249777367,-10000.0,0.00016438,2]
[366423892,1750249777810,-10000.0,0.00016438,2]
[366423893,1750249778303,-10000.0,0.00016438,2]
[366423894,1750249778805,-10000.0,0.00016438,2]
[366423895,1750249779321,-10000.0,0.00016438,2]
[366423896,1750249779799,-10000.0,0.00016438,2]
[366423897,1750249780364,-10000.0,0.00016438,2]
[366423898,1750249780866,-10000.0,0.00016438,2]
[366423899,1750249781931,-10000.0,0.00016438,2]
[366423900,1750249782038,-10000.0,0.00016438,2]
[366423901,1750249782400,-10000.0,0.00016438,2]
[366423902,1750249782878,-10000.0,0.00016438,2]
[366423903,1750249783421,-10000.0,0.00016438,2]
[366423904,1750249783853,-10000.0,0.00016438,2]
[366423905,1750249785363,-176.28609511,0.00016302,2]
[366423906,1750249785386,-9823.71390489,0.00016438,2]
[366423907,1750249785814,-10000.0,0.00016438,2]
[366423908,1750249786258,-10000.0,0.00016438,2]
[366423909,1750249786703,-10000.0,0.00016438,2]
[366423910,1750249787159,-1000.0,0.00015539,2]
[366423911,1750249787190,-9000.0,0.00016438,2]
[366423912,1750249787486,-10000.0,0.00016438,2]
[366423913,1750249787874,-10000.0,0.00016438,2]
[366423914,1750249788313,-10000.0,0.00016438,2]
[366423915,1750249788747,-10000.0,0.00016438,2]
[366423916,1750249789224,-10000.0,0.00016438,2]
[366423917,1750249789600,-10000.0,0.00016438,2]
[366423918,1750249790111,-10000.0,0.00016438,2]
[366423919,1750249790432,-10000.0,0.00016438,2]
[366423920,1750249791010,-10000.0,0.00016438,2]
[366423921,1750249792380,-303.5,0.00016438,2]
[366423922,1750249792406,-2776.02447649,0.00016438,2]
[366423923,1750249792429,-916.0,0.00016438,2]
[366423924,1750249792453,-151.0,0.00016438,2]
[366423925,1750249792477,-151.0,0.00016438,2]
[366423926,1750249792499,-151.970844,0.00016438,2]
[366423927,1750249792521,-151.0,0.00016438,2]
[366423928,1750249792545,-151.0,0.00016438,2]
[366423929,1750249792568,-151.0,0.00016438,2]
[366423930,1750249792590,-151.0,0.00016438,2]
[366423931,1750249792612,-151.0,0.00016438,2]
[366423932,1750249792636,-151.0,0.00016438,2]
[366423933,1750249792660,-151.0,0.00016438,2]
[366423934,1750249792682,-151.0,0.00016438,2]
[366423935,1750249792705,-151.0,0.00016438,2]
[366423936,1750249792728,-151.0,0.00016438,2]
[366423937,1750249792749,-279.135535,0.00016438,2]
[366423938,1750249792771,-151.0,0.00016438,2]
[366423939,1750249792792,-151.0,0.00016438,2]
[366423940,1750249792816,-151.0,0.00016438,2]
[366423941,1750249792838,-151.0,0.00016438,2]
[366423942,1750249792860,-151.0,0.00016438,2]
[366423943,1750249792882,-151.0,0.00016438,2]
[366423944,1750249792904,-151.0,0.00016438,2]
[366423945,1750249792926,-151.0,0.00016438,2]
[366423946,1750249792948,-151.413886,0.00016438,2]
[366423947,1750249792970,-151.112169,0.00016438,2]
[366423948,1750249792992,-151.0,0.00016438,2]
[366423949,1750249793015,-151.0,0.00016438,2]
[366423950,1750249793038,-151.0,0.00016438,2]
[366423951,1750249793063,-151.0,0.00016438,2]
[366423952,1750249793086,-151.0,0.00016438,2]
[366423953,1750249793108,-151.0,0.00016438,2]
[366423954,1750249793130,-151.0,0.00016438,2]
[366423955,1750249793151,-151.0,0.00016438,2]
[366423956,1750249793175,-151.0,0.00016438,2]
[366423957,1750249793197,-151.0,0.00016438,2]
[366423958,1750249793221,-151.0,0.00016438,2]
[366423959,1750249793244,-224.101732,0.00016438,2]
[366423960,1750249793266,-151.0,0.00016438,2]
[366423961,1750249793291,-214.74135751,0.00016438,2]
[366423962,1750249793785,-43.72783749,0.00016438,2]
[366423963,1750249793808,-151.0,0.00016438,2]
[366423964,1750249793831,-151.0,0.00016438,2]
[366423965,1750249793852,-151.0,0.00016438,2]
[366423966,1750249793873,-151.0,0.00016438,2]
[366423967,1750249793893,-151.0,0.00016438,2]
[366423968,1750249793914,-296.65398,0.00016438,2]
[366423969,1750249793935,-227.625089,0.00016438,2]
[366423970,1750249794079,-455.508818,0.00016438,2]
[366423971,1750249794101,-455.508818,0.00016438,2]
[366423972,1750249794122,-455.508818,0.00016438,2]
[366423973,1750249794142,-455.508818,0.00016438,2]
[366423974,1750249794164,-455.508818,0.00016438,2]
[366423975,1750249794186,-455.508818,0.00016438,2]
[366423976,1750249794210,-455.508818,0.00016438,2]
[366423977,1750249794231,-455.508818,0.00016438,2]
[366423978,1750249794253,-455.508818,0.00016438,2]
[366423979,1750249794273,-455.508818,0.00016438,2]
[366423980,1750249794297,-455.508826,0.00016438,2]
[366423981,1750249794319,-151.0,0.00016438,2]
[366423982,1750249794340,-151.0,0.00016438,2]
[366423983,1750249794362,-151.0,0.00016438,2]
[366423984,1750249794384,-151.0,0.00016438,2]
[366423985,1750249794404,-151.0,0.00016438,2]
[366423986,1750249794425,-151.0,0.00016438,2]
[366423987,1750249794445,-152.170871,0.00016438,2]
[366423988,1750249794466,-151.0,0.00016438,2]
[366423989,1750249794487,-151.0,0.00016438,2]
[366423990,1750249794510,-151.0,0.00016438,2]
[366423991,1750249794530,-235.73449,0.00016438,2]
[366423992,1750249794551,-151.0,0.00016438,2]
[366423993,1750249794573,-151.0,0.00016438,2]
[366423994,1750249794595,-151.0,0.00016438,2]
[366423995,1750249794622,-151.0,0.00016438,2]
[366423996,1750249794643,-151.0,0.00016438,2]
[366423997,1750249794664,-151.0,0.00016438,2]
[366423998,1750249794686,-239.915043,0.00016438,2]
[366423999,1750249794707,-151.0,0.00016438,2]
[366424000,1750249794728,-183.194187,0.00016438,2]
[366424001,1750249794749,-151.0,0.00016438,2]
[366424002,1750249794770,-151.0,0.00016438,2]
[366424003,1750249794791,-137.38149651,0.00016438,2]
[366424004,1750249794956,-13.61850349,0.00016438,2]
[366424005,1750249794978,-151.0,0.00016438,2]
[366424006,1750249795000,-151.0,0.00016438,2]
[366424007,1750249795021,-151.0,0.00016438,2]
[366424008,1750249795042,-243.671479,0.00016438,2]
[366424009,1750249795066,-151.520417,0.00016438,2]
[366424010,1750249795088,-490.0,0.00016438,2]
[366424011,1750249795109,-1008.69230574,0.00016438,2]
[366424012,1750249795130,-490.0,0.00016438,2]
[366424013,1750249795152,-151.0,0.00016438,2]
[366424014,1750249795174,-151.0,0.00016438,2]